bitfinex/quotes_SOLUSD_20230112
["timestamp","ask_amount","ask_price","bid_price","bid_amount"]
[1673550061377,0.96,16.565,16.552,26.63]
[1673550061597,113.0716,16.569,16.553,20.96]
[1673550061801,113.0716,16.569,16.554,25.93]
[1673550062013,113.0716,16.569,16.556,20.0]
[1673550062331,20.0,16.568,16.557,46.32]
[1673550062549,20.0,16.568,16.557,20.0]
[1673550063257,20.0,16.568,16.551,28.71]
[1673550063258,0.96,16.567,16.555,20.0]
[1673550063588,0.96,16.567,16.551,48.71]
[1673550063589,1.92,16.567,16.552,20.0]
[1673550064095,1.92,16.567,16.553,25.13]
[1673550064310,1.92,16.567,16.554,20.0]
[1673550064512,1.92,16.567,16.553,25.13]
[1673550064829,45.28,16.566,16.548,22.01]
[1673550065038,20.0,16.564,16.547,22.01]
[1673550065901,64.21,16.563,16.543,18.75725104]
[1673550066121,20.0,16.562,16.543,18.75725104]
[1673550066322,20.0,16.56,16.543,18.75725104]
[1673550066521,45.3,16.559,16.543,18.75725104]
[1673550067472,45.3,16.559,16.544,20.0]
[1673550068004,45.3,16.559,16.544,38.75725104]
[1673550068211,45.3,16.559,16.545,17.0]
[1673550068731,45.3,16.559,16.546,20.0]
[1673550068950,20.0,16.558,16.546,20.0]
[1673550069152,45.3,16.557,16.546,20.0]
[1673550069374,45.3,16.559,16.543,42.41]
[1673550069578,45.3,16.559,16.544,20.0]
[1673550069791,45.3,16.559,16.544,38.75725104]
[1673550069998,45.3,16.559,16.545,18.75725104]
[1673550070192,45.3,16.559,16.546,20.0]
[1673550071581,45.3,16.559,16.527,31.5421155]
[1673550071582,45.3,16.559,16.541,22.7]
[1673550071907,20.0,16.557,16.541,22.7]
[1673550072104,180.0424,16.556,16.536,22.8]
[1673550072528,20.0,16.555,16.536,22.8]
[1673550073268,20.0,16.555,16.537,17.0]
[1673550073484,20.0,16.555,16.538,25.83]
[1673550073792,180.0424,16.556,16.539,17.0]
[1673550073998,180.0424,16.556,16.54,71.25]
[1673550074212,134.7324,16.556,16.54,51.25]
[1673550074528,134.7324,16.556,16.54,70.00725104]
[1673550075061,134.7324,16.556,16.54,51.25]
[1673550075456,134.7324,16.556,16.541,17.0]
[1673550075666,134.7324,16.556,16.54,26.43]
[1673550075890,20.0,16.554,16.536,32.1]
[1673550076211,1.92,16.553,16.537,20.0]
[1673550076426,20.0,16.552,16.538,32.29]
[1673550076636,65.31,16.554,16.538,32.29]
[1673550076822,45.31,16.554,16.538,32.29]
[1673550077034,45.31,16.554,16.539,18.75725104]
[1673550077362,45.31,16.555,16.54,55.86]
[1673550077582,114.7324,16.556,16.541,1.92]
[1673550077765,114.7324,16.556,16.543,20.0]
[1673550077972,114.7324,16.556,16.544,49.25]
[1673550078198,114.7324,16.556,16.545,20.0]
[1673550078433,114.7324,16.556,16.546,52.59]
[1673550078618,114.7324,16.556,16.547,20.0]
[1673550080836,119.2591,16.56,16.55,24.82]
[1673550081024,65.28,16.566,16.55,24.82]
[1673550081235,20.0,16.565,16.551,18.75725104]
[1673550081461,45.28,16.564,16.55,24.82]
[1673550081879,20.0,16.563,16.55,24.82]
[1673550082090,20.0,16.563,16.551,17.0]
[1673550082306,0.96,16.562,16.551,17.0]
[1673550082503,1.92,16.562,16.551,17.0]
[1673550083689,1.92,16.562,16.552,20.0]
[1673550083897,116.2659,16.566,16.553,61.56]
[1673550084217,116.2659,16.566,16.554,20.0]
[1673550084617,116.2659,16.566,16.555,17.0]
[1673550084826,116.2659,16.566,16.556,40.0]
[1673550085471,116.2659,16.566,16.556,20.0]
[1673550085670,116.2659,16.566,16.555,20.0]
[1673550086092,116.2659,16.566,16.557,20.0]
[1673550087260,0.96,16.565,16.558,17.0]
[1673550087884,113.0716,16.569,16.56,24.82]
[1673550088713,113.0716,16.569,16.561,17.0]
[1673550090499,0.96,16.568,16.56,24.82]
[1673550090710,20.96,16.568,16.555,20.0]
[1673550091462,0.96,16.567,16.554,20.0]
[1673550091987,0.96,16.567,16.555,17.0]
[1673550092203,0.96,16.567,16.556,20.0]
[1673550092611,0.96,16.567,16.554,20.0]
[1673550093752,0.96,16.567,16.555,17.0]
[1673550094075,0.96,16.567,16.556,20.0]
[1673550095547,0.96,16.567,16.557,17.0]
[1673550098695,20.96,16.567,16.555,20.0]
[1673550098905,0.96,16.567,16.555,20.0]
[1673550099651,20.96,16.567,16.555,20.0]
[1673550099873,20.96,16.567,16.556,17.0]
[1673550100071,0.96,16.567,16.557,20.0]
[1673550100608,0.96,16.567,16.555,20.0]
[1673550103634,86.24,16.567,16.551,14.67]
[1673550103845,0.96,16.566,16.549,7.578]
[1673550104064,45.28,16.565,16.548,7.578]
[1673550104278,20.0,16.564,16.548,7.578]
[1673550104486,20.96,16.564,16.55,16.57]
[1673550105118,0.11,16.563,16.55,16.57]
[1673550105333,20.96,16.564,16.55,16.57]
[1673550106499,0.96,16.564,16.55,16.57]
[1673550106686,46.24,16.564,16.55,16.57]
[1673550106893,0.96,16.564,16.551,5.079]
[1673550107311,0.96,16.563,16.551,5.079]
[1673550107522,20.0,16.565,16.551,5.079]
[1673550107840,0.96,16.564,16.551,5.079]
[1673550110369,0.96,16.564,16.552,17.0]
[1673550111530,0.96,16.564,16.55,16.57]
[1673550112901,0.96,16.564,16.551,17.0]
[1673550113304,109.3993,16.568,16.551,17.0]
[1673550113520,109.3993,16.568,16.552,20.96]
[1673550113727,109.3993,16.568,16.553,20.0]
[1673550113942,109.3993,16.568,16.554,0.96]
[1673550114152,109.3993,16.568,16.555,0.96]
[1673550114362,109.3993,16.568,16.555,59.71725104]
[1673550114589,109.3993,16.568,16.556,21.28825104]
[1673550114788,109.3993,16.568,16.556,41.28825104]
[1673550115308,109.3993,16.568,16.557,17.0]
[1673550115520,109.3993,16.568,16.558,8.378]
[1673550115724,109.3993,16.568,16.557,8.378]
[1673550115937,0.96,16.567,16.557,8.378]
[1673550116161,20.96,16.567,16.558,17.0]
[1673550118151,0.96,16.567,16.558,17.0]
[1673550118361,0.96,16.567,16.556,20.0]
[1673550118579,0.96,16.567,16.555,20.0]
[1673550118799,0.96,16.567,16.556,13.38]
[1673550119330,0.96,16.567,16.557,20.0]
[1673550120150,0.96,16.567,16.556,20.0]
[1673550120379,0.96,16.567,16.557,10.6]
[1673550121532,109.3993,16.568,16.558,20.0]
[1673550121733,113.0716,16.569,16.56,16.46]
[1673550122057,112.9091,16.575,16.561,18.75725104]
[1673550122266,112.9091,16.575,16.562,11.59]
[1673550122483,112.9091,16.575,16.563,20.0]
[1673550122790,112.9091,16.575,16.564,33.49]
[1673550123314,112.9091,16.575,16.565,20.0]
[1673550123528,112.9091,16.575,16.566,39.22]
[1673550125085,45.24,16.581,16.566,57.97725104]
[1673550125299,111.4266,16.58,16.567,20.0]
[1673550125926,111.4266,16.58,16.566,39.22]
[1673550126141,45.24,16.579,16.566,39.22]
[1673550126352,111.4266,16.58,16.566,20.0]
[1673550128469,111.4266,16.58,16.57,16.46]
[1673550128661,45.23,16.584,16.57,16.46]
[1673550129394,20.0,16.583,16.57,16.46]
[1673550129608,45.23,16.582,16.57,16.46]
[1673550130765,0.96,16.581,16.57,16.46]
[1673550131177,45.23,16.582,16.57,16.46]
[1673550131393,45.23,16.584,16.57,16.46]
[1673550133188,45.23,16.585,16.571,20.96]
[1673550134017,45.23,16.585,16.57,16.52]
[1673550134228,20.0,16.584,16.57,16.52]
[1673550134562,46.19,16.583,16.566,20.0]
[1673550134772,20.0,16.582,16.566,20.0]
[1673550135093,45.24,16.581,16.566,20.0]
[1673550135826,20.0,16.58,16.566,20.0]
[1673550136008,45.24,16.579,16.566,20.0]
[1673550136225,120.9219,16.578,16.566,20.0]
[1673550136451,120.9219,16.578,16.564,36.32680228]
[1673550136769,120.9219,16.578,16.56,36.67]
[1673550136770,65.25,16.577,16.56,16.67]
[1673550137482,45.25,16.577,16.56,16.67]
[1673550137697,228.5483,16.578,16.561,65.80211514]
[1673550137920,228.5483,16.578,16.562,30.01]
[1673550138134,228.5483,16.578,16.563,40.0]
[1673550138325,228.5483,16.578,16.564,32.67]
[1673550138536,228.5483,16.578,16.565,20.0]
[1673550139083,228.5483,16.578,16.566,38.75725104]
[1673550139280,228.5483,16.578,16.567,20.0]
[1673550139491,228.5483,16.578,16.568,20.0]
[1673550139734,228.5483,16.578,16.568,38.75725104]
[1673550139913,228.5483,16.578,16.569,18.75725104]
[1673550140228,45.23,16.585,16.57,16.57]
[1673550140447,112.5589,16.585,16.57,16.57]
[1673550140634,45.23,16.584,16.57,16.57]
[1673550141483,45.23,16.584,16.57,35.32725104]
[1673550141689,112.5589,16.585,16.57,35.32725104]
[1673550141905,45.23,16.584,16.57,35.32725104]
[1673550142230,20.0,16.583,16.57,16.57]
[1673550142427,45.23,16.582,16.57,16.57]
[1673550142633,45.23,16.584,16.57,16.57]
[1673550144210,20.0,16.583,16.57,16.57]
[1673550144422,45.23,16.582,16.57,16.57]
[1673550144651,20.0,16.581,16.57,16.57]
[1673550144861,45.24,16.58,16.57,16.57]
[1673550145701,45.24,16.58,16.567,20.0]
[1673550145890,20.0,16.579,16.564,20.0]
[1673550146226,45.25,16.578,16.564,38.75725104]
[1673550146845,158.5488,16.578,16.565,17.0]
[1673550147064,20.0,16.577,16.566,20.0]
[1673550147381,46.21,16.576,16.567,17.0]
[1673550148936,46.21,16.576,16.56,50.0]
[1673550149149,40.0,16.575,16.558,31.81]
[1673550149366,20.0,16.573,16.556,65.80211514]
[1673550149586,45.26,16.572,16.556,65.80211514]
[1673550149798,0.96,16.571,16.556,65.80211514]
[1673550150112,45.27,16.57,16.556,65.80211514]
[1673550150429,45.27,16.57,16.556,47.0448641]
[1673550150613,45.26,16.572,16.556,47.0448641]
[1673550151046,20.0,16.571,16.556,47.0448641]
[1673550151263,45.27,16.57,16.557,18.75725104]
[1673550151578,46.23,16.57,16.551,135.61833305]
[1673550151792,241.9498,16.569,16.552,20.0]
[1673550151997,20.0,16.567,16.551,47.0448641]
[1673550152193,241.9498,16.569,16.551,47.0448641]
[1673550152194,45.28,16.566,16.551,47.0448641]
[1673550152412,45.27,16.568,16.552,18.75725104]
[1673550152630,0.96,16.567,16.552,18.75725104]
[1673550152939,45.28,16.566,16.552,18.75725104]
[1673550153271,40.0,16.565,16.552,18.75725104]
[1673550153470,45.28,16.564,16.552,18.75725104]
[1673550153677,20.0,16.563,16.552,18.75725104]
[1673550153993,20.0,16.561,16.552,18.75725104]
[1673550154317,115.8978,16.56,16.552,18.75725104]
[1673550155354,45.27,16.568,16.553,38.45]
[1673550155566,20.0,16.568,16.555,20.0]
[1673550155776,45.27,16.57,16.556,37.0]
[1673550155989,45.27,16.57,16.556,55.75725104]
[1673550156197,45.26,16.572,16.557,18.75725104]
[1673550156521,45.27,16.568,16.558,17.0]
[1673550156929,45.27,16.57,16.559,18.75725104]
[1673550157139,45.27,16.57,16.56,17.0]
[1673550158405,45.27,16.57,16.559,17.0]
[1673550159045,20.0,16.568,16.559,17.0]
[1673550159885,45.27,16.568,16.559,17.0]
[1673550160932,45.27,16.57,16.559,17.0]
[1673550162095,45.27,16.568,16.556,20.0]
[1673550162312,45.27,16.568,16.553,20.0]
[1673550162525,20.0,16.567,16.552,20.0]
[1673550162838,20.0,16.565,16.553,20.0]
[1673550163235,20.0,16.565,16.55,39.88]
[1673550163451,45.28,16.564,16.55,16.52]
[1673550164297,45.28,16.564,16.551,18.75725104]
[1673550164509,45.28,16.566,16.551,18.75725104]
[1673550164708,20.0,16.565,16.551,18.75725104]
[1673550164918,45.28,16.564,16.552,17.0]
[1673550165359,45.28,16.564,16.552,35.75725104]
[1673550165566,45.27,16.568,16.553,23.34]
[1673550165887,224.9498,16.569,16.555,20.0]
[1673550166198,224.9498,16.569,16.556,37.0]
[1673550166406,224.9498,16.569,16.557,45.29]
[1673550166615,224.9498,16.569,16.558,17.0]
[1673550167026,224.9498,16.569,16.558,35.75725104]
[1673550167238,224.9498,16.569,16.559,18.75725104]
[1673550167451,224.9498,16.569,16.56,17.0]
[1673550167661,20.0,16.568,16.56,17.0]
[1673550167880,65.27,16.568,16.56,17.0]
[1673550168695,65.27,16.568,16.55,16.4]
[1673550168696,247.57,16.568,16.55,16.4]
[1673550168910,239.3,16.567,16.546,27.91]
[1673550169121,45.28,16.566,16.547,18.75725104]
[1673550169338,37.96,16.565,16.547,18.75725104]
[1673550169565,45.28,16.564,16.547,18.75725104]
[1673550169778,20.0,16.563,16.547,18.75725104]
[1673550170086,45.29,16.562,16.547,18.75725104]
[1673550170279,20.0,16.561,16.547,18.75725104]
[1673550170490,45.29,16.56,16.547,18.75725104]
[1673550170913,45.29,16.56,16.548,17.0]
[1673550171228,45.29,16.56,16.548,35.75725104]
[1673550171963,45.29,16.56,16.543,47.81]
[1673550172173,45.29,16.56,16.544,20.0]
[1673550172379,45.29,16.56,16.546,18.75725104]
[1673550172608,45.29,16.56,16.547,20.0]
[1673550173009,45.29,16.56,16.547,38.75725104]
[1673550173564,45.29,16.56,16.548,17.0]
[1673550174306,157.1848,16.56,16.548,17.0]
[1673550174714,157.1848,16.56,16.548,35.75725104]
[1673550176090,157.1848,16.56,16.548,17.0]
[1673550176291,157.1848,16.56,16.548,35.75725104]
[1673550177146,20.0,16.559,16.548,17.0]
[1673550177357,20.0,16.557,16.548,17.0]
[1673550177550,20.0,16.557,16.547,20.0]
[1673550177757,20.0,16.557,16.542,24.54]
[1673550178084,20.0,16.555,16.545,18.75725104]
[1673550178516,20.0,16.555,16.538,21.37]
[1673550178699,20.0,16.553,16.535,21.38]
[1673550178915,46.28,16.552,16.54,18.75725104]
[1673550179855,119.6081,16.551,16.541,17.0]
[1673550181663,45.31,16.555,16.542,40.0]
[1673550181868,45.3,16.559,16.543,39.51]
[1673550182075,45.3,16.559,16.543,77.02450208]
[1673550182289,45.3,16.559,16.545,20.0]
[1673550182506,45.3,16.559,16.546,37.0]
[1673550182693,20.0,16.558,16.546,18.75725104]
[1673550182904,45.3,16.557,16.537,22.5]
[1673550183131,20.0,16.556,16.539,18.75725104]
[1673550183332,65.31,16.555,16.539,18.75725104]
[1673550183560,247.61,16.555,16.539,18.75725104]
[1673550183757,20.0,16.554,16.539,18.75725104]
[1673550183972,227.61,16.553,16.534,133.4113]
[1673550184184,115.3841,16.552,16.534,131.52855104]
[1673550184403,115.3841,16.552,16.535,20.0]
[1673550184404,46.28,16.551,16.535,20.0]
[1673550184592,20.0,16.55,16.535,20.0]
[1673550184827,46.28,16.549,16.536,18.75725104]
[1673550185018,20.0,16.548,16.537,20.0]
[1673550185228,20.0,16.55,16.537,20.0]
[1673550185229,45.33,16.547,16.537,20.0]
[1673550185547,45.32,16.549,16.537,20.0]
[1673550185953,45.32,16.549,16.534,18.75725104]
[1673550186164,45.32,16.549,16.535,20.0]
[1673550186586,20.0,16.548,16.535,20.0]
[1673550186798,45.33,16.547,16.535,38.75725104]
[1673550187000,45.33,16.547,16.536,17.0]
[1673550187235,45.33,16.547,16.537,20.0]
[1673550187427,45.33,16.547,16.538,17.0]
[1673550188267,45.33,16.547,16.537,20.0]
[1673550188478,45.33,16.547,16.532,20.0]
[1673550188921,45.33,16.547,16.531,20.0]
[1673550189540,45.33,16.547,16.532,20.0]
[1673550189761,45.32,16.549,16.532,36.22]
[1673550189956,45.32,16.549,16.534,20.0]
[1673550190285,45.32,16.55,16.535,20.0]
[1673550190488,45.32,16.55,16.535,53.38]
[1673550190815,45.32,16.55,16.536,38.75725104]
[1673550191017,45.32,16.55,16.537,37.0]
[1673550191231,111.3312,16.551,16.537,55.75725104]
[1673550191232,156.6512,16.551,16.537,55.75725104]
[1673550191438,156.6512,16.551,16.538,18.75725104]
[1673550191759,20.0,16.55,16.539,17.0]
[1673550192080,45.32,16.549,16.539,17.0]
[1673550193005,45.32,16.549,16.538,18.75725104]
[1673550193221,202.3,16.548,16.532,16.22]
[1673550193538,20.0,16.546,16.533,18.75725104]
[1673550193758,82.34,16.545,16.525,36.17]
[1673550193959,196.4399,16.545,16.527,18.75725104]
[1673550194151,196.4399,16.545,16.525,36.17]
[1673550194365,20.0,16.544,16.526,18.75725104]
[1673550194574,45.34,16.543,16.526,18.75725104]
[1673550194993,20.0,16.541,16.527,17.0]
[1673550195209,65.35,16.541,16.528,20.0]
[1673550195528,45.35,16.541,16.529,35.75725104]
[1673550195958,113.1944,16.542,16.53,18.75725104]
[1673550196149,113.1944,16.542,16.531,17.0]
[1673550196359,113.1944,16.542,16.53,18.75725104]
[1673550196567,20.0,16.541,16.531,18.75725104]
[1673550196804,20.0,16.541,16.525,16.17]
[1673550196990,45.35,16.54,16.526,38.75725104]
[1673550197207,0.96,16.539,16.526,38.75725104]
[1673550197417,45.35,16.538,16.526,38.75725104]
[1673550197831,45.35,16.54,16.526,38.75725104]
[1673550198040,45.35,16.54,16.527,18.75725104]
[1673550198277,45.35,16.54,16.528,20.0]
[1673550198481,45.35,16.541,16.528,20.0]
[1673550198695,45.35,16.541,16.529,17.0]
[1673550198907,113.1944,16.542,16.529,17.0]
[1673550199123,113.1944,16.542,16.53,18.75725104]
[1673550199428,20.0,16.54,16.526,20.0]
[1673550199620,45.35,16.539,16.526,38.75725104]
[1673550199825,0.96,16.538,16.526,38.75725104]
[1673550200038,0.96,16.538,16.503,63.08423101]
[1673550200039,20.0,16.536,16.517,14.23]
[1673550200273,45.36,16.535,16.513,134.1426]
[1673550200468,20.0,16.534,16.517,18.75725104]
[1673550200799,45.37,16.533,16.517,18.75725104]
[1673550201006,273.2091,16.533,16.517,18.75725104]
[1673550201319,20.96,16.532,16.515,31.62725104]
[1673550201527,45.37,16.531,16.515,31.62725104]
[1673550202580,20.96,16.53,16.515,18.75725104]
[1673550202800,45.38,16.529,16.515,18.75725104]
[1673550203422,45.37,16.531,16.515,18.75725104]
[1673550203645,45.37,16.531,16.514,15.01]
[1673550203860,20.0,16.53,16.515,18.75725104]
[1673550204176,45.38,16.529,16.516,20.0]
[1673550205344,20.0,16.528,16.514,20.0]
[1673550205850,45.38,16.529,16.514,20.0]
[1673550206064,45.38,16.529,16.514,38.75725104]
[1673550206279,45.38,16.529,16.515,17.0]
[1673550206482,45.38,16.529,16.516,20.0]
[1673550206673,45.38,16.529,16.517,17.0]
[1673550207003,45.38,16.529,16.518,20.0]
[1673550207203,45.38,16.529,16.519,17.0]
[1673550209211,45.38,16.529,16.518,20.0]
[1673550209424,20.0,16.528,16.514,20.0]
[1673550209627,45.38,16.527,16.514,20.0]
[1673550210573,45.38,16.527,16.515,17.0]
[1673550210774,45.38,16.527,16.511,15.86]
[1673550210982,129.6137,16.526,16.51,16.67]
[1673550211186,20.0,16.524,16.51,16.67]
[1673550211401,139.1075,16.524,16.51,16.67]
[1673550211610,45.4,16.523,16.51,16.67]
[1673550211817,0.96,16.522,16.511,18.75725104]
[1673550212029,45.38,16.529,16.511,36.69725104]
[1673550212459,20.0,16.528,16.512,38.75725104]
[1673550212669,45.38,16.527,16.513,17.0]
[1673550212881,45.38,16.527,16.513,53.83725104]
[1673550213105,45.38,16.527,16.514,38.75725104]
[1673550213299,20.0,16.528,16.515,17.0]
[1673550213515,20.0,16.528,16.516,20.0]
[1673550213939,45.38,16.527,16.516,20.0]
[1673550214155,45.38,16.527,16.513,20.0]
[1673550214477,45.38,16.527,16.513,38.75725104]
[1673550214680,45.38,16.527,16.513,20.0]
[1673550214889,45.38,16.527,16.514,35.75725104]
[1673550215102,45.38,16.527,16.515,20.0]
[1673550215305,20.0,16.526,16.514,18.75725104]
[1673550215517,45.39,16.525,16.51,16.67]
[1673550215937,0.96,16.524,16.51,16.67]
[1673550216147,45.4,16.523,16.511,18.75725104]
[1673550216994,45.38,16.527,16.512,20.0]
[1673550217196,45.38,16.529,16.513,17.59]
[1673550217394,20.0,16.528,16.513,36.34725104]
[1673550217610,20.0,16.528,16.514,37.0]
[1673550217834,45.38,16.527,16.514,37.0]
[1673550218690,20.0,16.526,16.51,16.67]
[1673550218867,45.39,16.525,16.508,133.47615104]
[1673550219288,20.0,16.524,16.508,133.47615104]
[1673550219493,158.6698,16.523,16.508,133.47615104]
[1673550219922,0.96,16.522,16.51,16.54]
[1673550220135,109.8323,16.524,16.51,16.54]
[1673550220461,109.8323,16.524,16.511,18.75725104]
[1673550220670,109.8323,16.524,16.512,17.0]
[1673550220881,0.96,16.523,16.512,17.0]
[1673550221068,0.96,16.523,16.51,16.54]
[1673550221284,20.0,16.522,16.51,16.54]
[1673550222469,0.96,16.521,16.511,17.0]
[1673550223913,0.96,16.521,16.506,31.80725104]
[1673550224122,46.36,16.521,16.507,20.0]
[1673550224351,65.4,16.522,16.507,20.0]
[1673550224566,65.4,16.522,16.508,18.75725104]
[1673550225492,65.4,16.522,16.507,20.0]
[1673550225698,65.4,16.522,16.506,20.0]
[1673550225903,65.4,16.522,16.504,8.046]
[1673550226137,20.96,16.521,16.504,8.046]
[1673550226355,20.96,16.521,16.502,10.05]
[1673550226356,65.4,16.52,16.502,10.05]
[1673550226751,45.4,16.52,16.504,18.75725104]
[1673550227063,45.4,16.521,16.504,18.75725104]
[1673550227279,45.4,16.521,16.502,10.05]
[1673550227489,20.0,16.52,16.503,18.75725104]
[1673550227713,45.41,16.519,16.504,20.0]
[1673550228226,20.0,16.518,16.504,20.0]
[1673550228439,45.41,16.517,16.504,20.0]
[1673550228658,45.41,16.519,16.503,20.0]
[1673550229905,45.41,16.519,16.5,46.52]
[1673550230236,45.41,16.519,16.501,20.0]
[1673550230442,20.0,16.522,16.502,15.04]
[1673550230443,45.4,16.521,16.502,15.04]
[1673550230645,45.4,16.521,16.502,55.83936089]
[1673550230849,45.4,16.523,16.503,17.0]
[1673550231061,45.4,16.523,16.51,16.57]
[1673550231280,45.4,16.523,16.511,17.0]
[1673550231691,109.8323,16.524,16.511,17.0]
[1673550232644,45.39,16.526,16.513,20.0]
[1673550232861,117.7811,16.527,16.514,39.05]
[1673550233066,117.7811,16.527,16.515,20.0]
[1673550233277,117.7811,16.527,16.516,17.0]
[1673550233801,117.7811,16.527,16.517,20.0]
[1673550233995,117.7811,16.527,16.518,17.0]
[1673550235174,0.96,16.526,16.518,17.0]
[1673550235376,45.39,16.525,16.518,17.0]
[1673550235582,116.6626,16.524,16.518,17.0]
[1673550235792,0.96,16.523,16.518,17.0]
[1673550237042,0.96,16.523,16.511,20.0]
[1673550237480,0.96,16.523,16.51,16.67]
[1673550237703,45.4,16.522,16.51,16.67]
[1673550238010,0.96,16.521,16.511,20.0]
[1673550238218,45.39,16.526,16.511,35.19]
[1673550238425,117.7811,16.527,16.511,35.19]
[1673550238834,117.7811,16.527,16.512,17.0]
[1673550239172,117.7811,16.527,16.514,20.0]
[1673550239360,117.7811,16.527,16.515,37.0]
[1673550241664,45.39,16.526,16.515,17.0]
[1673550241888,20.0,16.525,16.515,17.0]
[1673550242209,161.9236,16.524,16.515,17.0]
[1673550242427,20.0,16.523,16.51,16.67]
[1673550242622,45.4,16.522,16.505,22.91]
[1673550242830,0.96,16.521,16.505,22.91]
[1673550243141,20.0,16.519,16.506,20.0]
[1673550243359,0.96,16.518,16.505,20.0]
[1673550243558,0.96,16.518,16.5,112.77]
[1673550243559,0.96,16.518,16.503,20.0]
[1673550243769,0.96,16.518,16.502,20.0]
[1673550243994,0.96,16.518,16.504,20.0]
[1673550244206,45.4,16.52,16.505,20.0]
[1673550244517,45.4,16.52,16.505,38.75725104]
[1673550244838,20.0,16.521,16.506,34.98]
[1673550245166,45.4,16.522,16.507,20.0]
[1673550245469,45.4,16.522,16.508,17.0]
[1673550246081,20.0,16.521,16.508,17.0]
[1673550246624,0.96,16.52,16.508,17.0]
[1673550247247,46.36,16.52,16.508,17.0]
[1673550247569,0.96,16.52,16.507,20.0]
[1673550247792,45.41,16.519,16.505,20.0]
[1673550248094,20.0,16.518,16.505,20.0]
[1673550248510,0.96,16.517,16.505,20.0]
[1673550248728,0.96,16.517,16.502,20.0]
[1673550249440,0.96,16.517,16.503,11.56]
[1673550249774,0.96,16.517,16.504,20.0]
[1673550250179,0.96,16.517,16.502,20.0]
[1673550250514,0.96,16.517,16.503,8.833]
[1673550250704,0.96,16.517,16.504,20.0]
[1673550250914,0.96,16.517,16.505,6.232]
[1673550251124,0.96,16.517,16.506,37.0]
[1673550253618,20.0,16.518,16.506,37.0]
[1673550254526,20.0,16.519,16.506,37.0]
[1673550255050,0.96,16.518,16.506,37.0]
[1673550255270,0.96,16.518,16.506,17.0]
[1673550255470,45.41,16.517,16.5,46.49]
[1673550255794,20.0,16.516,16.5,46.49]
[1673550256013,66.38,16.515,16.5,46.49]
[1673550256427,20.96,16.515,16.5,30.0]